bitfinex/quotes_BTCUSD_20250904
["timestamp","ask_amount","ask_price","bid_price","bid_amount"]
[1756965004930,0.002,110820.0,110810.0,1.38857961]
[1756965008210,0.002,110820.0,110810.0,1.39045961]
[1756965008575,0.002,110820.0,110810.0,1.38857961]
[1756965008774,0.002,110820.0,110810.0,1.23593961]
[1756965008975,0.002,110820.0,110810.0,1.38857961]
[1756965012451,0.00721,110820.0,110810.0,0.82307367]
[1756965012782,0.00721,110820.0,110810.0,0.58929452]
[1756965012958,0.00721,110820.0,110810.0,0.74189452]
[1756965014290,0.00721,110820.0,110810.0,0.47819452]
[1756965015499,0.00721,110820.0,110810.0,0.32559452]
[1756965015651,0.00721,110820.0,110810.0,0.47819452]
[1756965017592,0.00721,110820.0,110810.0,0.4572557]
[1756965017798,0.00721,110820.0,110810.0,0.43013631]
[1756965019991,0.00721,110820.0,110810.0,0.43219631]
[1756965020170,0.00721,110820.0,110810.0,0.85484917]
[1756965020374,0.002,110820.0,110810.0,0.85484917]
[1756965021503,0.002,110820.0,110810.0,0.43219631]
[1756965021715,0.002,110820.0,110810.0,0.85484917]
[1756965022050,0.00519,110820.0,110810.0,0.85484917]
[1756965022613,0.00519,110820.0,110810.0,0.43219631]
[1756965022812,0.00721,110820.0,110810.0,0.70224917]
[1756965023035,0.00721,110820.0,110810.0,0.85480917]
[1756965023571,0.00721,110820.0,110810.0,0.43215631]
[1756965023775,0.00721,110820.0,110810.0,0.85274917]
[1756965025672,0.00721,110820.0,110810.0,0.43215631]
[1756965025872,0.00721,110820.0,110810.0,0.85480917]
[1756965027234,0.00721,110820.0,110810.0,0.43215631]
[1756965027444,0.00721,110820.0,110810.0,0.70018917]
[1756965027644,0.00721,110820.0,110810.0,0.43009631]
[1756965027645,0.61033569,110820.0,110810.0,0.43009631]
[1756965027800,0.18768283,110820.0,110810.0,0.43009631]
[1756965028555,0.00721,110820.0,110810.0,0.43009631]
[1756965032163,0.18768283,110820.0,110810.0,0.43009631]
[1756965032912,0.18768283,110820.0,110810.0,0.24956719]
[1756965032913,1.11206785,110820.0,110810.0,0.24956719]
[1756965033111,1.05597855,110820.0,110810.0,0.24956719]
[1756965033334,0.61033569,110820.0,110810.0,0.24956719]
[1756965033533,0.18768283,110820.0,110810.0,0.24956719]
[1756965033943,0.00721,110820.0,110810.0,0.43005631]
[1756965034141,0.18768283,110820.0,110810.0,0.43005631]
[1756965034686,0.61033569,110820.0,110810.0,0.24956719]
[1756965037368,0.61033569,110820.0,110810.0,0.09704719]
[1756965037720,0.26081214,110820.0,110810.0,0.24956719]
[1756965037846,0.61033569,110820.0,110810.0,0.24956719]
[1756965038052,0.18768283,110820.0,110810.0,0.24956719]
[1756965038254,0.61033569,110820.0,110810.0,0.24956719]
[1756965038451,0.61033569,110820.0,110810.0,0.09704719]
[1756965038668,1.05597855,110820.0,110810.0,0.09704719]
[1756965038913,1.05597855,110820.0,110810.0,0.24952719]
[1756965040714,1.05597855,110820.0,110810.0,0.0051312]
[1756965040919,1.05597855,110820.0,110810.0,0.1576512]
[1756965041132,1.05597855,110820.0,110810.0,0.1576112]
[1756965041342,1.14789454,110820.0,110810.0,0.1576112]
[1756965041839,1.14789454,110820.0,110810.0,0.0051312]
[1756965042050,1.30037454,110820.0,110810.0,0.0051312]
[1756965042216,1.64037454,110820.0,110810.0,0.0051312]
[1756965042436,1.66750225,110820.0,110810.0,0.0051312]
[1756965043251,1.66750225,110820.0,110810.0,0.0021312]
[1756965043592,1.66550225,110820.0,110810.0,0.0021312]
[1756965043712,1.66650225,110820.0,110810.0,0.0021312]
[1756965043910,1.66750225,110820.0,110810.0,0.0041312]
[1756965044365,1.66650225,110820.0,110810.0,0.0021312]
[1756965044767,1.66750225,110820.0,110810.0,0.0041312]
[1756965045540,2.09015511,110820.0,110810.0,0.0041312]
[1756965045740,1.66750225,110820.0,110810.0,0.0041312]
[1756965050256,2.09015511,110820.0,110810.0,0.0041312]
[1756965050457,1.66750225,110820.0,110810.0,0.0041312]
[1756965051040,2.09015511,110820.0,110810.0,0.0041312]
[1756965051218,2.08915511,110820.0,110810.0,0.0021312]
[1756965051418,1.66650225,110820.0,110810.0,0.0021312]
[1756965051625,1.66750225,110820.0,110810.0,0.0031312]
[1756965051863,1.66650225,110820.0,110810.0,0.0011312]
[1756965052115,1.66650225,110820.0,110810.0,0.0021312]
[1756965053189,2.08915511,110820.0,110810.0,0.0021312]
[1756965053444,1.66650225,110820.0,110810.0,0.0021312]
[1756965053869,1.51402225,110820.0,110810.0,0.0031312]
[1756965054079,1.66750225,110820.0,110810.0,0.0031312]
[1756965054509,1.51502225,110820.0,110810.0,0.0031312]
[1756965054712,1.66750225,110820.0,110810.0,0.0031312]
[1756965055751,1.51502225,110820.0,110810.0,0.0031312]
[1756965055963,1.66750225,110820.0,110810.0,0.0031312]
[1756965057485,1.51502225,110820.0,110810.0,0.0031312]
[1756965057710,1.66746225,110820.0,110810.0,0.0031312]
[1756965062760,1.51502225,110820.0,110810.0,0.0031312]
[1756965062960,1.66746225,110820.0,110810.0,0.0031312]
[1756965073126,1.66742225,110820.0,110810.0,0.0031312]
[1756965076641,1.42310626,110820.0,110810.0,0.0031312]
[1756965076845,1.57550626,110820.0,110810.0,0.0031312]
[1756965079590,1.29398202,110820.0,110810.0,0.0031312]
[1756965080000,1.14158202,110820.0,110810.0,0.0031312]
[1756965080207,1.29394202,110820.0,110810.0,0.0031312]
[1756965080416,1.38585801,110820.0,110810.0,0.0031312]
[1756965085700,0.54960054,110820.0,110810.0,0.0051812]
[1756965085941,0.54960054,110820.0,110810.0,0.0070612]
[1756965085942,0.70196054,110820.0,110810.0,0.0070612]
[1756965086172,0.70196054,110820.0,110810.0,0.0051812]
[1756965086566,1.26574202,110820.0,110810.0,0.0051812]
[1756965088343,1.26869202,110820.0,110810.0,0.0051812]
[1756965088711,1.31916304,110820.0,110810.0,0.0051812]
[1756965090875,1.32113304,110820.0,110810.0,0.0051812]
[1756965093442,0.75735156,110820.0,110810.0,0.0051812]
[1756965093758,1.32113304,110820.0,110810.0,0.0051812]
[1756965094194,1.32113304,110820.0,110810.0,0.0031312]
[1756965104031,0.75735156,110820.0,110810.0,0.0031312]
[1756965104231,1.32113304,110820.0,110810.0,0.0031312]
[1756965117154,0.55452054,110820.0,110810.0,0.0031312]
[1756965117390,1.27054202,110820.0,110810.0,0.0031312]
[1756965119635,1.11830202,110820.0,110810.0,0.0031312]
[1756965119911,1.27054202,110820.0,110810.0,0.0031312]
[1756965120616,1.11830202,110820.0,110810.0,0.0031312]
[1756965120820,0.20960054,110820.0,110810.0,0.0051112]
[1756965121354,0.18247283,110820.0,110810.0,0.0051112]
[1756965123072,0.18247283,110820.0,110810.0,0.18785643]
[1756965123280,0.18247283,110820.0,110810.0,0.18560032]
[1756965124767,0.18247283,110820.0,110810.0,0.27751631]
[1756965127467,0.18247283,110820.0,110810.0,0.31814662]
[1756965131705,0.18743283,110820.0,110810.0,0.1356775]
[1756965132024,0.75121431,110820.0,110810.0,0.2878375]
[1756965134582,0.75121431,110820.0,110810.0,0.1356775]
[1756965134789,0.27934882,110820.0,110810.0,0.2878375]
[1756965135101,0.8431303,110820.0,110810.0,0.2878375]
[1756965136585,0.8431303,110820.0,110810.0,0.0031312]
[1756965136804,0.8657603,110820.0,110810.0,0.0031312]
[1756965137005,0.89288724,110820.0,110810.0,0.0031312]
[1756965137597,1.23288724,110820.0,110810.0,0.0031312]
[1756965139322,0.66910576,110820.0,110810.0,0.0031312]
[1756965139530,1.5147154,110820.0,110810.0,0.0031312]
[1756965143621,1.93752022,110820.0,110810.0,0.0031312]
[1756965143969,1.5147154,110820.0,110810.0,0.0031312]
[1756965144315,1.6668354,110820.0,110810.0,0.0031312]
[1756965148546,0.82122576,110820.0,110810.0,0.0031312]
[1756965148735,1.6668354,110820.0,110810.0,0.0031312]
[1756965148882,1.5147154,110820.0,110810.0,0.0031312]
[1756965149093,1.6668354,110820.0,110810.0,0.0031312]
[1756965152233,1.5147154,110820.0,110810.0,0.0031312]
[1756965152438,1.6668354,110820.0,110810.0,0.0031312]
[1756965157350,1.6442054,110820.0,110810.0,0.0031312]
[1756965174558,0.79859576,110820.0,110810.0,0.0031312]
[1756965174761,1.6442054,110820.0,110810.0,0.0031312]
[1756965175761,1.61799776,110820.0,110810.0,0.0031312]
[1756965179903,1.46587776,110820.0,110810.0,0.0031312]
[1756965180131,1.61791776,110820.0,110810.0,0.0031312]
[1756965180364,1.37396177,110820.0,110810.0,0.0052812]
[1756965180586,1.52104177,110820.0,110810.0,0.0052812]
[1756965181198,1.36900177,110820.0,110810.0,0.0052812]
[1756965181654,1.52104177,110820.0,110810.0,0.0052812]
[1756965182275,1.36900177,110820.0,110810.0,0.0052812]
[1756965182477,1.52104177,110820.0,110810.0,0.0052812]
[1756965183220,0.76734812,110820.0,110810.0,0.0052812]
[1756965183447,1.61295776,110820.0,110810.0,0.0052812]
[1756965184206,0.76734812,110820.0,110810.0,0.0052812]
[1756965184831,0.77043812,110820.0,110810.0,0.0052812]
[1756965187105,0.77250812,110820.0,110810.0,0.0052812]
[1756965188012,1.19531294,110820.0,110810.0,0.0052812]
[1756965189005,0.77250812,110820.0,110810.0,0.0031312]
[1756965189168,1.19531294,110820.0,110810.0,0.0031312]
[1756965189950,0.77250812,110820.0,110810.0,0.0031312]
[1756965190085,1.19531294,110820.0,110810.0,0.0031312]
[1756965191324,0.68059213,110820.0,110810.0,0.0031312]
[1756965191545,1.10339695,110820.0,110810.0,0.0031312]
[1756965192505,0.68059213,110820.0,110810.0,0.0031312]
[1756965192707,1.10339695,110820.0,110810.0,0.0031312]
[1756965193115,0.95135695,110820.0,110810.0,0.0052212]
[1756965193334,1.10335695,110820.0,110810.0,0.0052212]
[1756965193567,1.19527294,110820.0,110810.0,0.0052212]
[1756965193986,1.19527294,110820.0,110810.0,0.0031312]
[1756965194822,0.52339213,110820.0,110810.0,0.0052212]
[1756965194953,0.67539213,110820.0,110810.0,0.0052212]
[1756965195157,0.52339213,110820.0,110810.0,0.42802602]
[1756965195372,0.67539213,110820.0,110810.0,0.42802602]
[1756965195579,0.67539213,110820.0,110810.0,0.0052212]
[1756965195843,0.67539213,110820.0,110810.0,0.42802602]
[1756965196007,0.67539213,110820.0,110810.0,0.0052212]
[1756965196204,0.52339213,110820.0,110810.0,0.0052212]
[1756965196411,0.52339213,110820.0,110810.0,0.42990602]
[1756965196606,0.52339213,110820.0,110810.0,0.0052212]
[1756965196767,0.52339213,110820.0,110810.0,0.42802602]
[1756965197173,0.62051812,110820.0,110810.0,0.1572212]
[1756965197374,0.62051812,110820.0,110810.0,0.1551312]
[1756965197642,1.04332294,110820.0,110810.0,0.1551312]
[1756965197953,1.19532294,110820.0,110810.0,0.0031312]
[1756965199408,1.19132294,110820.0,110810.0,0.0031312]
[1756965199834,0.67656213,110820.0,110810.0,0.0052212]
[1756965200100,0.67656213,110820.0,110810.0,0.1571812]
[1756965200523,0.52460213,110820.0,110810.0,0.1571812]
[1756965200945,0.52460213,110820.0,110810.0,0.0052212]
[1756965201154,0.52460213,110820.0,110810.0,0.1571812]
[1756965203782,0.54360664,110820.0,110810.0,0.1571812]
[1756965204640,0.52460213,110820.0,110810.0,0.1571812]
[1756965205391,0.52460213,110820.0,110810.0,0.0052212]
[1756965205596,0.52460213,110820.0,110810.0,0.1550912]
[1756965205771,0.67656213,110820.0,110810.0,0.1550912]
[1756965206191,0.67656213,110820.0,110810.0,0.0031312]
[1756965206392,0.71743626,110820.0,110810.0,0.0031312]
[1756965208131,0.56547626,110820.0,110810.0,0.0031312]
[1756965209559,0.56547626,110820.0,110810.0,0.1550512]
[1756965210337,0.71739626,110820.0,110810.0,0.0031312]
[1756965210557,0.71739626,110820.0,110810.0,0.1550512]
[1756965213769,0.56547626,110820.0,110810.0,0.1550512]
[1756965215571,0.52460213,110820.0,110810.0,0.1550512]
[1756965218549,0.52460213,110820.0,110810.0,0.1571412]
[1756965218790,0.52460213,110820.0,110810.0,0.1550512]
[1756965221222,0.52460213,110820.0,110810.0,0.1570712]
[1756965221643,0.52460213,110820.0,110810.0,0.1550512]
[1756965221778,0.61651812,110820.0,110810.0,0.1550512]
[1756965222788,0.59555411,110820.0,110810.0,0.1550512]
[1756965222995,0.50363812,110820.0,110810.0,0.1550512]
[1756965224821,0.50363812,110820.0,110810.0,0.15932731]
[1756965225914,0.49842812,110820.0,110810.0,0.15932731]
[1756965228786,0.50371812,110820.0,110810.0,0.15932731]
[1756965230258,0.50163812,110820.0,110810.0,0.15932731]
[1756965230823,0.49842812,110820.0,110810.0,0.15932731]
[1756965231033,0.50163812,110820.0,110810.0,0.15932731]
[1756965232409,0.50371812,110820.0,110810.0,0.99534452]
[1756965232662,0.18366728,110830.0,110810.0,0.99308841]
[1756965232874,0.55079027,110830.0,110820.0,0.00225591]
[1756965233087,0.21287027,110830.0,110820.0,0.00427591]
[1756965233932,0.21387027,110830.0,110820.0,0.18474874]
[1756965234145,0.21387027,110830.0,110820.0,0.18249283]
[1756965234529,0.21387027,110830.0,110820.0,0.00202]
[1756965234731,0.18774728,110830.0,110820.0,0.18474874]
[1756965235042,0.18774728,110830.0,110820.0,0.18249283]
[1756965235251,0.18674728,110830.0,110820.0,0.00202]
[1756965235451,0.18466728,110830.0,110820.0,0.00527591]
[1756965235666,0.18566655,110830.0,110820.0,0.27966473]
[1756965235853,0.18245655,110830.0,110820.0,0.84102092]
[1756965236059,0.18245655,110830.0,110820.0,0.86814257]
[1756965236574,0.002,110830.0,110820.0,0.30453047]
[1756965236740,0.002,110830.0,110820.0,0.86814257]
[1756965237615,0.18245655,110830.0,110820.0,0.86814257]
[1756965238459,0.17886958,110830.0,110820.0,0.86814257]
[1756965238653,0.71163593,110840.0,110820.0,0.86814257]
[1756965238654,0.02712248,110840.0,110820.0,0.88908139]
[1756965238865,0.18363415,110850.0,110830.0,0.83598464]
[1756965239092,0.18363415,110850.0,110830.0,0.98778464]
[1756965239289,0.53269602,110850.0,110840.0,0.02711689]
[1756965239514,0.53477602,110850.0,110840.0,0.11903288]
[1756965240160,0.53577602,110850.0,110840.0,0.11903288]
[1756965240357,0.53577602,110850.0,110840.0,0.27083288]
[1756965240944,0.001,110850.0,110840.0,0.45329315]
[1756965241147,0.18142399,110850.0,110840.0,1.01690525]
[1756965241445,0.00529,110850.0,110840.0,1.01690525]
[1756965241652,0.00421,110850.0,110840.0,1.01890525]
[1756965241861,0.00521,110850.0,110840.0,1.02390525]
[1756965242490,0.18563399,110850.0,110840.0,1.02390525]
[1756965243968,0.18563399,110850.0,110840.0,0.50126611]
[1756965244172,0.18771399,110850.0,110840.0,0.50126611]
[1756965245475,0.00521,110850.0,110840.0,1.06487821]
[1756965245893,0.18563399,110850.0,110840.0,1.06487821]
[1756965246122,0.18771399,110850.0,110840.0,0.91307821]
[1756965246340,0.18771399,110850.0,110840.0,1.06281821]
[1756965246554,0.18771399,110850.0,110840.0,0.49920611]
[1756965247512,0.13990049,110850.0,110840.0,0.49920611]
[1756965247733,0.13990049,110850.0,110840.0,0.50122611]
[1756965247922,0.13990049,110850.0,110840.0,0.16902584]
[1756965248125,0.13990049,110850.0,110840.0,0.32078584]
[1756965248720,0.13990049,110850.0,110840.0,0.03411689]
[1756965248721,1.04351259,110850.0,110840.0,0.03411689]
[1756965248922,1.28921894,110850.0,110840.0,0.007]
[1756965249128,0.75272748,110850.0,110840.0,0.007]
[1756965249333,1.31633958,110850.0,110840.0,0.007]
[1756965249535,1.31942958,110850.0,110840.0,0.007]
[1756965250777,1.24887323,110850.0,110840.0,0.007]
[1756965252608,1.41014922,110850.0,110840.0,0.007]
[1756965252870,1.432618,110850.0,110840.0,0.007]
[1756965253695,0.8690059,110850.0,110840.0,0.002]
[1756965253904,0.52047283,110820.0,110810.0,0.0001312]
[1756965254145,0.59056718,110820.0,110810.0,0.0001312]
[1756965254357,0.59270718,110820.0,110810.0,0.0001312]
[1756965254580,0.62292204,110820.0,110810.0,0.0001312]
[1756965255018,0.62392204,110820.0,110810.0,0.0041312]
[1756965255226,0.62392204,110820.0,110810.0,0.1558512]
[1756965255612,0.55382769,110820.0,110810.0,0.0041312]
[1756965256039,0.56289824,110820.0,110810.0,0.1558512]
[1756965256629,0.56489824,110820.0,110810.0,0.1618512]
[1756965256897,0.56489824,110820.0,110810.0,0.0101312]
[1756965257049,0.56489824,110820.0,110810.0,0.1618512]
[1756965257705,0.65681423,110820.0,110810.0,0.1618512]
[1756965258677,0.56489824,110820.0,110810.0,0.1618512]
[1756965258903,0.56489824,110820.0,110810.0,0.0101312]
[1756965259072,1.12851034,110820.0,110810.0,0.0101312]
[1756965259477,0.56489824,110820.0,110810.0,0.0101312]
[1756965263623,0.98763136,110820.0,110810.0,0.1618512]
[1756965266430,1.07954735,110820.0,110810.0,0.1618512]
[1756965266643,1.50228047,110820.0,110810.0,0.1618512]
[1756965266827,1.50228047,110820.0,110810.0,0.0101312]
[1756965268896,1.65400047,110820.0,110810.0,0.0101312]
[1756965271990,1.56208448,110820.0,110810.0,0.0101312]
[1756965275751,1.41036448,110820.0,110810.0,0.0101312]
[1756965275959,1.56204448,110820.0,110810.0,0.0101312]
[1756965276165,1.41036448,110820.0,110810.0,0.0101312]
[1756965276372,1.56204448,110820.0,110810.0,0.0101312]
[1756965276580,1.65396047,110820.0,110810.0,0.0101312]
[1756965277170,1.41036448,110820.0,110810.0,0.0101312]
[1756965277340,1.56204448,110820.0,110810.0,0.0101312]
[1756965279464,1.41036448,110820.0,110810.0,0.0101312]
[1756965279670,1.56204448,110820.0,110810.0,0.0101312]
[1756965282139,1.41036448,110820.0,110810.0,0.0101312]
[1756965282336,1.56204448,110820.0,110810.0,0.0101312]
[1756965282546,1.65396047,110820.0,110810.0,0.0101312]
[1756965286195,1.50228047,110820.0,110810.0,0.0101312]
[1756965286403,1.56200448,110820.0,110810.0,0.0101312]
[1756965289235,1.41036448,110820.0,110810.0,0.0101312]
[1756965289433,1.56200448,110820.0,110810.0,0.0101312]
[1756965290087,0.71653824,110820.0,110810.0,0.0101312]
[1756965290267,1.56200448,110820.0,110810.0,0.0101312]
[1756965290666,1.65392047,110820.0,110810.0,0.0101312]
[1756965290903,1.50228047,110820.0,110810.0,0.0101312]
[1756965291102,1.65392047,110820.0,110810.0,0.0101312]
[1756965291680,1.56200448,110820.0,110810.0,0.0101312]
[1756965292079,1.41036448,110820.0,110810.0,0.0101312]
[1756965292285,1.56200448,110820.0,110810.0,0.0101312]
[1756965298412,0.71653824,110820.0,110810.0,0.0101312]
[1756965298589,1.56200448,110820.0,110810.0,0.0101312]
[1756965299005,1.60112127,110820.0,110810.0,0.0101312]
[1756965300184,1.56200448,110820.0,110810.0,0.0101312]
[1756965300403,1.56196448,110820.0,110810.0,0.0101312]
[1756965300818,0.71649824,110820.0,110810.0,0.0101312]
[1756965301047,1.56196448,110820.0,110810.0,0.0101312]
[1756965302048,0.71649824,110820.0,110810.0,0.0101312]
[1756965302208,1.56196448,110820.0,110810.0,0.0101312]
[1756965302808,1.65388047,110820.0,110810.0,0.0101312]
[1756965303408,1.56196448,110820.0,110810.0,0.0101312]
[1756965313031,1.58531448,110820.0,110810.0,0.0101312]
[1756965315226,0.73984824,110820.0,110810.0,0.0101312]
[1756965315432,0.73980824,110820.0,110810.0,0.0101312]
[1756965315641,1.58527448,110820.0,110810.0,0.0101312]
[1756965318935,1.62094275,110820.0,110810.0,0.0101312]
[1756965320656,1.62090275,110820.0,110810.0,0.0101312]
[1756965321018,1.58523448,110820.0,110810.0,0.0101312]
[1756965321242,0.58824824,110820.0,110810.0,0.0101312]
[1756965321478,1.56188448,110820.0,110810.0,0.0101312]
[1756965321825,0.98240136,110820.0,110810.0,0.0152212]
[1756965322465,1.40513448,110820.0,110810.0,0.0152212]
[1756965323631,1.12335579,110820.0,110810.0,0.0152212]
[1756965325241,1.12335579,110820.0,110810.0,0.0120912]
[1756965325473,1.12538579,110820.0,110810.0,0.0120912]
[1756965325903,1.37180178,110820.0,110810.0,0.1616512]
[1756965326625,1.37180178,110820.0,110810.0,0.1636112]
[1756965327975,1.37180178,110820.0,110810.0,0.0120912]
[1756965328588,1.37180178,110820.0,110810.0,0.0101312]
[1756965335566,0.80811423,110820.0,110810.0,0.0101312]
[1756965335774,1.37180178,110820.0,110810.0,0.0101312]
[1756965336006,1.27984579,110820.0,110810.0,0.0101312]
[1756965341971,1.25363815,110820.0,110810.0,0.0101312]
[1756965342973,1.25163815,110820.0,110810.0,0.0041312]
[1756965343378,1.25163815,110820.0,110810.0,0.0061312]
[1756965343602,1.25163815,110820.0,110810.0,0.0001312]
[1756965343603,1.34355414,110820.0,110810.0,0.0001312]
[1756965343828,1.34455414,110820.0,110810.0,0.0031312]
[1756965344294,1.34355414,110820.0,110810.0,0.0001312]
[1756965344713,1.34455414,110820.0,110810.0,0.0021312]
[1756965345170,1.34455414,110820.0,110810.0,0.0071312]
[1756965345397,1.34555414,110820.0,110810.0,0.0071312]
[1756965345586,1.34455414,110820.0,110810.0,0.0071312]
[1756965345790,1.34355414,110820.0,110810.0,0.0021312]
[1756965346375,1.34355414,110820.0,110810.0,0.0071312]
[1756965346581,1.34455414,110820.0,110810.0,0.0071312]
[1756965346776,0.78082659,110820.0,110810.0,0.0021312]
[1756965346962,1.25259815,110820.0,110810.0,0.0021312]
[1756965347157,1.25359815,110820.0,110810.0,0.0061312]
[1756965347533,1.25259815,110820.0,110810.0,0.0041312]
[1756965347654,1.25359815,110820.0,110810.0,0.0061312]
[1756965347862,1.34551414,110820.0,110810.0,0.0061312]
[1756965349123,1.34050414,110820.0,110810.0,0.0061312]
[1756965350316,1.09714815,110820.0,110810.0,0.0061312]
[1756965350545,1.24858815,110820.0,110810.0,0.0061312]
[1756965350741,1.248229,110820.0,110810.0,0.0061312]
[1756965361322,1.248229,110820.0,110810.0,0.00571551]
[1756965361499,1.248229,110820.0,110810.0,0.00536442]
[1756965361903,1.34014499,110820.0,110810.0,0.00536442]
[1756965363124,1.18870499,110820.0,110810.0,0.00536442]
[1756965363307,1.34010499,110820.0,110810.0,0.00536442]
[1756965363731,1.248189,110820.0,110810.0,0.00745442]
[1756965364803,1.248189,110820.0,110810.0,0.00536442]
[1756965365650,1.096789,110820.0,110810.0,0.00536442]
[1756965365892,1.248189,110820.0,110810.0,0.00536442]
[1756965366652,1.248189,110820.0,110810.0,0.00745442]
[1756965366857,1.096789,110820.0,110810.0,0.00745442]
[1756965367028,1.248189,110820.0,110810.0,0.00745442]
[1756965374123,1.096789,110820.0,110810.0,0.00536442]
[1756965374396,1.248189,110820.0,110810.0,0.00744442]
[1756965375154,1.253519,110820.0,110810.0,0.00744442]
[1756965375434,1.34543499,110820.0,110810.0,0.00536442]
[1756965381277,1.19403499,110820.0,110810.0,0.00536442]
[1756965381478,1.34539499,110820.0,110810.0,0.00536442]
[1756965381909,1.19403499,110820.0,110810.0,0.00536442]
[1756965382130,1.34539499,110820.0,110810.0,0.00536442]
[1756965385467,1.62734558,110820.0,110810.0,0.00536442]
[1756965388078,2.05016465,110820.0,110810.0,0.00536442]
[1756965388285,1.62734558,110820.0,110810.0,0.00536442]
[1756965392209,0.63034744,110820.0,110810.0,0.00536442]
[1756965392407,0.68979145,110820.0,110810.0,0.00744442]
[1756965392632,1.53542959,110820.0,110810.0,0.00536442]
[1756965396636,1.95824866,110820.0,110810.0,0.00536442]
[1756965397809,1.98262866,110820.0,110810.0,0.00536442]
[1756965397967,2.16646064,110820.0,110810.0,0.00536442]
[1756965400868,2.01510064,110820.0,110810.0,0.00536442]
[1756965401064,2.16642064,110820.0,110810.0,0.00536442]
[1756965407375,1.74360157,110820.0,110810.0,0.00536442]
[1756965408141,2.16542064,110820.0,110810.0,0.00336442]
[1756965408376,2.16642064,110820.0,110810.0,0.00436442]
[1756965408758,2.16542064,110820.0,110810.0,0.00436442]
[1756965408914,2.16442064,110820.0,110810.0,0.001]
[1756965409120,2.16442064,110820.0,110810.0,0.004]
[1756965409323,2.16542064,110820.0,110810.0,0.004]
[1756965412967,2.16442064,110820.0,110810.0,0.003]
[1756965413729,2.18688933,110820.0,110810.0,1e-08]
[1756965413969,0.18048912,110810.0,110800.0,0.5]
[1756965414174,1.20995924,110810.0,110800.0,0.50014227]
[1756965414353,1.36628924,110810.0,110800.0,0.50014227]
[1756965414708,1.39342264,110810.0,110800.0,0.50014227]
[1756965415823,1.39442264,110810.0,110800.0,0.50114227]
[1756965416030,1.24410264,110810.0,110800.0,0.50114227]
[1756965416227,1.39542264,110810.0,110800.0,0.50329227]
[1756965416431,0.96957357,110810.0,110800.0,0.50329227]
[1756965416643,0.82128357,110810.0,110800.0,0.50329227]
[1756965416848,1.39542264,110810.0,110800.0,0.50114227]
[1756965417313,0.97260357,110810.0,110800.0,0.50114227]
[1756965417705,0.97260357,110810.0,110800.0,0.50329227]
[1756965419122,1.73542264,110810.0,110800.0,0.50114227]
[1756965419471,0.8897845,110810.0,110800.0,0.50114227]
[1756965419674,1.31260357,110810.0,110800.0,0.50329227]
[1756965419933,1.73542264,110810.0,110800.0,0.50329227]
[1756965420539,1.73542264,110810.0,110800.0,0.50114227]
[1756965420994,0.8897845,110810.0,110800.0,0.50114227]
[1756965421170,1.73542264,110810.0,110800.0,0.50114227]
[1756965430260,0.7384645,110810.0,110800.0,0.50114227]
[1756965430464,1.73542264,110810.0,110800.0,0.50114227]
[1756965436266,1.73542264,110810.0,110800.0,0.0920972]
[1756965437933,1.73442264,110810.0,110800.0,0.0910972]
[1756965438134,1.73342264,110810.0,110800.0,0.0910972]
[1756965438427,1.73442264,110810.0,110800.0,0.0910972]
[1756965438635,1.73642264,110810.0,110800.0,0.0910972]
[1756965442871,1.73642264,110810.0,110780.0,0.00321]
[1756965442872,0.5205217,110790.0,110780.0,0.00321]
[1756965443100,1.1647649,110790.0,110780.0,0.00335198]
[1756965443282,1.1647649,110790.0,110780.0,0.00535198]
[1756965443484,1.19190021,110790.0,110780.0,0.00535198]
[1756965444458,1.19290021,110790.0,110780.0,0.00635198]
[1756965444742,1.04158021,110790.0,110780.0,0.00635198]
[1756965445125,1.19290021,110790.0,110780.0,0.00635198]
[1756965445374,1.19390021,110790.0,110780.0,0.00635198]
[1756965447447,1.33515984,110790.0,110780.0,0.00635198]
[1756965448478,1.33515984,110790.0,110780.0,0.00314198]
[1756965448889,1.33714984,110790.0,110780.0,0.00314198]
[1756965449089,1.34016984,110790.0,110780.0,0.00314198]
[1756965450066,1.33714984,110790.0,110780.0,0.00314198]
[1756965450476,1.18582984,110790.0,110780.0,0.00314198]
[1756965450684,1.18383984,110790.0,110780.0,0.00314198]
[1756965450850,1.33515984,110790.0,110780.0,0.00609198]
[1756965454640,1.18383984,110790.0,110780.0,0.00609198]
[1756965454768,1.33515984,110790.0,110780.0,0.00609198]
[1756965456025,1.18383984,110790.0,110780.0,0.00609198]
[1756965456201,1.18582984,110790.0,110780.0,0.00314198]
[1756965456403,0.77104114,110790.0,110780.0,0.00609198]
[1756965456611,1.33511984,110790.0,110780.0,0.00609198]
[1756965458187,1.34012984,110790.0,110780.0,0.00114198]
[1756965458589,1.34012984,110790.0,110780.0,0.00314198]
[1756965461603,0.77605114,110790.0,110780.0,0.00314198]
[1756965461757,1.34012984,110790.0,110780.0,0.00314198]
[1756965462429,0.77605114,110790.0,110780.0,0.00314198]
[1756965462607,1.34012984,110790.0,110780.0,0.00314198]
[1756965463063,0.77605114,110790.0,110780.0,0.00314198]
[1756965463267,1.34012984,110790.0,110780.0,0.00314198]
[1756965464487,1.34012984,110790.0,110780.0,0.00114198]
[1756965469633,1.31391273,110790.0,110780.0,0.00114198]
[1756965475875,1.31391273,110790.0,110780.0,0.00114198]
[1756965480494,0.74983403,110790.0,110780.0,0.00114198]
[1756965480698,1.31391273,110790.0,110780.0,0.00114198]
[1756965485388,0.74983403,110790.0,110780.0,0.00114198]
[1756965485855,1.31391273,110790.0,110780.0,0.00114198]
[1756965487982,1.16263273,110790.0,110780.0,0.00114198]
[1756965488276,1.31387273,110790.0,110780.0,0.00310198]
[1756965489690,0.74979403,110790.0,110780.0,0.00310198]
[1756965489895,1.31387273,110790.0,110780.0,0.00310198]
[1756965492214,0.74979403,110790.0,110780.0,0.00310198]
[1756965492392,1.31085273,110790.0,110780.0,0.00310198]
[1756965492697,1.31406273,110790.0,110780.0,0.00310198]
[1756965493503,1.16282273,110790.0,110780.0,0.00310198]
[1756965493722,1.31406273,110790.0,110780.0,0.00310198]
[1756965493920,0.59874403,110790.0,110780.0,0.00310198]
[1756965494122,1.31406273,110790.0,110780.0,0.00310198]
[1756965495809,1.2439586,110790.0,110780.0,0.00310198]
[1756965496009,1.2439586,110790.0,110780.0,0.00114198]
[1756965500835,0.6798399,110790.0,110780.0,0.00114198]
[1756965501029,1.2439186,110790.0,110780.0,0.00114198]
[1756965504061,1.2439186,110790.0,110780.0,0.00314198]
[1756965504267,0.6798399,110790.0,110780.0,0.00314198]
[1756965504468,1.2439186,110790.0,110780.0,0.00114198]
[1756965504666,1.30467738,110790.0,110780.0,0.00114198]
[1756965505695,0.58939868,110790.0,110780.0,0.00314198]
[1756965505895,1.30467738,110790.0,110780.0,0.00314198]
[1756965506092,1.30467738,110790.0,110780.0,0.00114198]
[1756965506292,1.30467738,110790.0,110780.0,0.00314198]
[1756965506563,1.2407086,110790.0,110780.0,0.00314198]
[1756965506715,0.5254299,110790.0,110780.0,0.00314198]
[1756965506916,0.6746399,110790.0,110780.0,0.00635198]
[1756965507225,0.36913531,110790.0,110780.0,0.00635198]
[1756965507424,0.36913531,110790.0,110780.0,0.75096868]